fUSD/lending_fUSD_20240210
["ID","MTS","AMOUNT","RATE_DAILY","PERIOD"]
[313683945,1707580241112,-595.89606313,0.00022808,2]
[313683946,1707580241121,-2000.0,0.00022808,2]
[313683947,1707580241131,-200.0,0.00022808,2]
[313683948,1707580241139,-7720.6603964,0.00022808,2]
[313683949,1707580241148,-1310.888244,0.00022808,2]
[313683950,1707580241158,-56246.22,0.00022808,2]
[313683951,1707580241167,-1263.75,0.00022809,2]
[313683952,1707580241176,-2525.59,0.00022809,2]
[313683953,1707580241186,-1150.1,0.00022809,2]
[313683954,1707580241195,-500.0,0.00022809,2]
[313683955,1707580241204,-500.0,0.00022809,2]
[313683956,1707580241213,-1195.04,0.00022809,2]
[313683957,1707580241222,-671.18,0.00022809,2]
[313683958,1707580241232,-899.33,0.00022809,2]
[313683959,1707580241241,-1077.86,0.00022809,2]
[313683960,1707580241250,-542.17,0.00022809,2]
[313683961,1707580241260,-160.5990093,0.00022809,2]
[313683962,1707580241269,-1485.68,0.00022809,2]
[313683963,1707580241278,-942.75,0.00022809,2]
[313683964,1707580241288,-10204.5343295,0.00022809,2]
[313683965,1707580241297,-150.01,0.0002281,2]
[313683966,1707580241306,-3311.42578551,0.0002281,2]
[313683967,1707580241316,-47861.085,0.00022825,2]
[313683968,1707580241325,-1363.38796461,0.00022845,2]
[313683969,1707580241334,-495228.78189339,0.0002285,2]
[313683970,1707580241343,-150.0,0.0002285,2]
[313683971,1707580241353,-150.0,0.0002285,2]
[313683972,1707580241362,-500.0,0.00022851,2]
[313683973,1707580241371,-500.0,0.00022851,2]
[313683974,1707580241380,-500.0,0.00022851,2]
[313683975,1707580241389,-549.58775898,0.00022851,2]
[313683976,1707580241399,-500.0,0.00022851,2]
[313683977,1707580241407,-500.0,0.00022851,2]
[313683978,1707580241417,-500.0,0.00022851,2]
[313683979,1707580241426,-500.0,0.00022851,2]
[313683980,1707580241436,-500.0,0.00022851,2]
[313683981,1707580241445,-525.25835959,0.00022851,2]
[313683982,1707580241454,-500.0,0.00022851,2]
[313683983,1707580241464,-517.02,0.00022851,2]
[313683984,1707580241473,-500.0,0.00022851,2]
[313683985,1707580241482,-500.0,0.00022851,2]
[313683986,1707580241491,-500.0,0.00022851,2]
[313683987,1707580241501,-500.0,0.00022851,2]
[313683988,1707580241510,-500.0,0.00022851,2]
[313683989,1707580241519,-250.0,0.00022851,2]
[313683990,1707580241529,-1140.37,0.00022851,2]
[313683991,1707580241539,-543.12,0.00022851,2]
[313683992,1707580241548,-500.0,0.00022851,2]
[313683993,1707580241559,-541.66,0.00022851,2]
[313683994,1707580241572,-500.0,0.00022851,2]
[313684002,1707580241745,-500.0,0.00022851,2]
[313684004,1707580241755,-500.0,0.00022851,2]
[313684006,1707580241765,-751.95,0.00022851,2]
[313684008,1707580241774,-500.0,0.00022851,2]
[313684010,1707580241784,-500.0,0.00022851,2]
[313684012,1707580241793,-975.2,0.00022851,2]
[313684014,1707580241802,-500.0,0.00022852,2]
[313684015,1707580241811,-774.37,0.00022852,2]
[313684017,1707580241820,-500.0,0.00022852,2]
[313684018,1707580241829,-500.0,0.00022852,2]
[313684020,1707580241838,-500.0,0.00022852,2]
[313684022,1707580241847,-500.0,0.00022852,2]
[313684024,1707580241857,-500.0,0.00022852,2]
[313684026,1707580241866,-500.0,0.00022852,2]
[313684028,1707580241875,-500.0,0.00022852,2]
[313684030,1707580241885,-539.2,0.00022852,2]
[313684032,1707580241894,-521.52,0.00022852,2]
[313684034,1707580241903,-545.58,0.00022852,2]
[313684036,1707580241912,-500.0,0.00022852,2]
[313684038,1707580241921,-500.0,0.00022852,2]
[313684040,1707580241930,-395.39046167,0.00022852,2]
[313684042,1707580241940,-500.0,0.00022852,2]
[313684044,1707580241949,-500.0,0.00022852,2]
[313684046,1707580241958,-522.11,0.00022852,2]
[313684048,1707580241967,-500.0,0.00022852,2]
[313684050,1707580241976,-639.17,0.00022852,2]
[313684052,1707580241985,-500.0,0.00022852,2]
[313684054,1707580241994,-500.0,0.00022852,2]
[313684055,1707580242003,-500.0,0.00022852,2]
[313684057,1707580242013,-543.26859084,0.00022852,2]
[313684059,1707580242022,-229.7303824,0.00022852,2]
[313684061,1707580242032,-500.0,0.00022852,2]
[313684063,1707580242041,-500.0,0.00022852,2]
[313684065,1707580242050,-500.0,0.00022852,2]
[313684067,1707580242059,-154.76723447,0.00022852,2]
[313684069,1707580242068,-500.0,0.00022852,2]
[313684071,1707580242077,-500.0,0.00022852,2]
[313684073,1707580242086,-500.0,0.00022852,2]
[313684075,1707580242095,-173.21929864,0.00022852,2]
[313684077,1707580242104,-500.0,0.00022852,2]
[313684079,1707580242117,-500.0,0.00022852,2]
[313684081,1707580242126,-500.0,0.00022852,2]
[313684084,1707580242135,-500.0,0.00022852,2]
[313684085,1707580242144,-500.0,0.00022852,2]
[313684087,1707580242153,-500.0,0.00022852,2]
[313684089,1707580242162,-500.0,0.00022852,2]
[313684091,1707580242171,-500.0,0.00022852,2]
[313684093,1707580242181,-500.0,0.00022852,2]
[313684095,1707580242190,-500.0,0.00022852,2]
[313684097,1707580242199,-500.0,0.00022852,2]
[313684099,1707580242208,-500.0,0.00022852,2]
[313684101,1707580242216,-500.0,0.00022852,2]
[313684103,1707580242225,-500.0,0.00022852,2]
[313684105,1707580242234,-500.0,0.00022852,2]
[313684107,1707580242244,-566.85,0.00022852,2]
[313684109,1707580242252,-500.0,0.00022852,2]
[313684111,1707580242265,-500.0,0.00022852,2]
[313684113,1707580242274,-2000.0,0.00022885,2]
[313684116,1707580242283,-200.0,0.00022885,2]
[313684117,1707580242292,-150.0,0.000229,2]
[313684119,1707580242301,-5516.28808429,0.00022927,2]
[313684121,1707580242310,-300.0,0.00022971,2]
[313684123,1707580242319,-500.0,0.00022972,2]
[313684125,1707580242328,-500.0,0.00022972,2]
[313684127,1707580242337,-500.0,0.00022972,2]
[313684129,1707580242346,-298.34581564,0.00022972,2]
[313684131,1707580242355,-500.0,0.00022972,2]
[313684133,1707580242364,-734.21,0.00022972,2]
[313684134,1707580242374,-999.73,0.00022972,2]
[313684135,1707580242383,-500.0,0.00022972,2]
[313684136,1707580242393,-577.7,0.00022972,2]
[313684137,1707580242402,-568.93,0.00022972,2]
[313684138,1707580242411,-500.0,0.00022972,2]
[313684139,1707580242420,-534.75,0.00022972,2]
[313684140,1707580242429,-555.96,0.00022972,2]
[313684141,1707580242438,-500.0,0.00022973,2]
[313684142,1707580242447,-500.0,0.00022973,2]
[313684143,1707580242456,-500.0,0.00022973,2]
[313684144,1707580242466,-500.0,0.00022973,2]
[313684145,1707580242475,-500.0,0.00022973,2]
[313684146,1707580242484,-500.0,0.00022973,2]
[313684147,1707580242493,-500.0,0.00022973,2]
[313684148,1707580242502,-500.0,0.00022973,2]
[313684149,1707580242511,-580.2,0.00022973,2]
[313684150,1707580242521,-500.0,0.00022973,2]
[313684151,1707580242530,-500.0,0.00022973,2]
[313684152,1707580242541,-500.0,0.00022973,2]
[313684153,1707580242550,-500.0,0.00022973,2]
[313684154,1707580242559,-500.0,0.00022973,2]
[313684155,1707580242572,-500.0,0.00022973,2]
[313684156,1707580242581,-500.0,0.00022973,2]
[313684157,1707580242590,-500.0,0.00022973,2]
[313684158,1707580242600,-585.82,0.00022973,2]
[313684159,1707580242610,-500.0,0.00022973,2]
[313684161,1707580242619,-500.0,0.00022973,2]
[313684164,1707580242628,-500.0,0.00022973,2]
[313684165,1707580242638,-500.0,0.00022973,2]
[313684168,1707580242649,-500.0,0.00022973,2]
[313684169,1707580242659,-770.07,0.00022973,2]
[313684171,1707580242668,-500.0,0.00022973,2]
[313684173,1707580242677,-500.0,0.00022973,2]
[313684175,1707580242686,-500.0,0.00022973,2]
[313684177,1707580242695,-500.0,0.00022973,2]
[313684179,1707580242705,-767.3,0.00022973,2]
[313684181,1707580242714,-195.92919896,0.00022974,2]
[313684183,1707580242723,-7650.0473602,0.00022984,2]
[313684185,1707580242732,-7579.4343239,0.00022984,2]
[313684187,1707580242742,-1298.8988811,0.00022984,2]
[313684189,1707580242751,-1286.9095183,0.00022984,2]
[313684191,1707580242761,-61835.7319999,0.00022984,2]
[313684194,1707580242770,-67425.2439999,0.00022984,2]
[313684196,1707580242779,-52617.3176667,0.00022984,2]
[313684198,1707580242790,-57373.5503334,0.00022984,2]
[313684200,1707580242800,-11185.7492901,0.00022984,2]
[313684201,1707580242809,-12166.9642507,0.00022984,2]
[313684203,1707580242819,-77194.4415754,0.00022984,2]
[313684205,1707580242828,-63729.4729719,0.00022984,2]
[313684207,1707580242837,-150.0,0.00022999,2]
[313684209,1707580242846,-150.0,0.00022999,2]
[313684211,1707580242856,-150.0,0.00022999,2]
[313684213,1707580242865,-150.0,0.00022999,2]
[313684215,1707580242875,-150.0,0.00022999,2]
[313684217,1707580242884,-150.0,0.00022999,2]
[313684219,1707580242893,-340909.38208644,0.00023,2]
[313684246,1707580243134,-1827.80108867,0.00023,2]
[313684250,1707580243155,-558666.84272572,0.00023,2]
[313684252,1707580243168,-460.89446664,0.00023,2]
[313684254,1707580243179,-254.99999,0.00023,2]
[313684304,1707580243792,-10084.7378,0.00023,2]
[313684306,1707580243804,-314.5912,0.00023,2]
[313684317,1707580243889,-246.20473957,0.00022807,2]
[313684319,1707580243899,-434.10313021,0.00022807,2]
[313684321,1707580243909,-500.0,0.00022807,2]
[313684323,1707580243918,-500.0,0.00022807,2]
[313684325,1707580243928,-172.56420073,0.00022807,2]
[313684327,1707580243938,-615.92516895,0.00022807,2]
[313684329,1707580243947,-500.0,0.00022807,2]
[313684331,1707580243957,-207019.51625652,0.00023,2]
[313684336,1707580243997,-350.0,0.00022807,2]
[313684338,1707580244006,-500.0,0.00022807,2]
[313684340,1707580244015,-500.0,0.00022807,2]
[313684342,1707580244024,-1059.35153101,0.00023,2]
[313684344,1707580244038,-1700.85871284,0.00023,2]
[313684347,1707580244054,-291.8170343,0.00022807,2]
[313684349,1707580244063,-561.48877279,0.00023,2]
[313684351,1707580244074,-953.84846005,0.00023,2]
[313684386,1707580244391,-310.4383055,0.00023,2]
[313684388,1707580244402,-293.75433028,0.00023,2]
[313684390,1707580244413,-1070.43220795,0.00023,2]
[313684392,1707580244424,-334.37839027,0.00023,2]
[313684395,1707580244435,-2375.11275444,0.00023,2]
[313684396,1707580244447,-480.95,0.00023,2]
[313684399,1707580244460,-522.73036951,0.00023,2]
[313684401,1707580244473,-507.51139252,0.00023,2]
[313684404,1707580244492,-616116.5837477,0.00023,2]
[313684406,1707580244504,-8838.92911455,0.00023,2]
[313684408,1707580244516,-328.32741597,0.00023,2]
[313684411,1707580244527,-1010.57592617,0.00023,2]
[313684413,1707580244543,-491.61093114,0.00023,2]
[313684415,1707580244555,-18700.15782462,0.00023,2]
[313684417,1707580244572,-1643.75657254,0.00023,2]
[313684432,1707580246408,-2478.65881179,0.00023,2]
[313684433,1707580246420,-726.86143221,0.00023,2]
[313684434,1707580246437,-5543.04283961,0.00023,2]
[313684435,1707580246449,-614.393,0.00023,2]
[313684436,1707580246468,-952.86685494,0.0002254,2]
[313684437,1707580246496,-146.50150062,0.0002254,2]
[313684438,1707580246506,-6071.21598955,0.00023,2]
[313684440,1707580246520,-6003.77295865,0.00023,2]
[313684441,1707580246532,-19843.32402004,0.00023,2]
[313684442,1707580246545,-2764.17640877,0.00023,2]
[313684443,1707580246556,-620.30278712,0.00023,2]
[313684444,1707580246572,-501.23073282,0.00023,2]
[313684445,1707580246583,-649.19326457,0.00023,2]
[313684449,1707580246644,-265.0065028,0.00023,2]
[313684451,1707580246655,-463.78444924,0.00023,2]
[313684452,1707580362796,10131.59143757,0.000225,2]
[313684453,1707580409857,150.0,0.00022268,2]
[313684454,1707580409879,153.05,0.00022268,2]
[313684455,1707580412281,150.0,0.00022,2]
[313684456,1707580412303,28.75,0.00022,2]
[313684457,1707580586938,150.0,0.00020443,2]
[313684458,1707580586959,121.51,0.00020443,2]
[313684459,1707581074720,150.0,0.00020567,2]
[313684460,1707581074742,107.93,0.00020567,2]
[313684461,1707581078224,42.07,0.00021982,2]
[313684462,1707581078244,150.0,0.00021982,2]
[313684463,1707581078264,86.8392396,0.00021982,2]
[313684464,1707581112709,150.0,0.0002,2]
[313684465,1707581112730,150.0,0.0002,2]
[313684466,1707581112751,150.0,0.0002,2]
[313684467,1707581112771,33.56830194,0.0002,2]
[313684468,1707581122615,150.0,0.00022,2]
[313684469,1707581122635,150.0,0.00022,2]
[313684470,1707581132160,150.0,0.00022,2]
[313684471,1707581132181,150.0,0.00022,2]
[313684472,1707581141705,300.0,0.00022,2]
[313684473,1707581150217,160.044691,0.00022205,2]
[313684474,1707581178045,150.0,0.00022202,2]
[313684475,1707581178066,150.0,0.00022202,2]
[313684476,1707581178085,150.0,0.00022202,2]
[313684477,1707581178105,150.0,0.00022202,2]
[313684478,1707581178126,150.0,0.00022202,2]
[313684479,1707581178145,150.0,0.00022202,2]
[313684480,1707581178166,150.0,0.00022202,2]
[313684481,1707581178187,150.0,0.00022202,2]
[313684482,1707581178209,150.0,0.00022202,2]
[313684483,1707581178229,150.0,0.00022202,2]
[313684484,1707581178250,150.0,0.00022202,2]
[313684485,1707581178269,150.0,0.00022202,2]
[313684486,1707581178290,245.50245846,0.00022202,2]
[313684487,1707581178310,511.41754154,0.00022202,2]
[313684488,1707581187895,2100.0,0.00022,2]
[313684492,1707581240757,262.85097326,0.00022,2]
[313684493,1707581242146,403.98004389,0.0002134,2]
[313684494,1707581243928,404.41481397,0.00022,2]
[313684495,1707581244224,421.92602062,0.00021982,2]
[313684496,1707581250434,2000.0,0.00021954,2]
[313684497,1707581251697,503.72273351,0.00022,4]
[313684504,1707581260128,387.08514119,0.0002134,2]
[313684505,1707581262225,225.53810435,0.00021982,2]
[313684506,1707581264658,2519.04,0.00021935,2]
[313684507,1707581282063,-1369.98653739,0.00022314,2]
[313684508,1707581282085,-5870.32,0.00022315,2]
[313684509,1707581282109,-250.0,0.00022317,2]
[313684510,1707581282131,-2721.47,0.00022417,2]
[313684511,1707581282159,-1000.0,0.00022433,2]
[313684512,1707581282186,-155.28328602,0.0002244,2]
[313684513,1707581282209,-1113.48323804,0.0002254,2]
[313684514,1707581282232,-727.49,0.0002254,2]
[313684515,1707581282255,-710.11,0.0002254,2]
[313684516,1707581282277,-711.44,0.0002254,2]
[313684517,1707581282300,-730.16,0.0002254,2]
[313684518,1707581282322,-727.42,0.0002254,2]
[313684519,1707581282345,-726.85,0.0002254,2]
[313684520,1707581282367,-730.73,0.0002254,2]
[313684521,1707581282391,-252.54,0.00022578,2]
[313684522,1707581282414,-1341.00943703,0.00022594,2]
[313684523,1707581282646,-1000.0,0.000227,2]
[313684524,1707581282671,-200.0,0.00022721,2]
[313684525,1707581282693,-200.0,0.00022721,2]
[313684526,1707581282717,-740.13951687,0.00022766,2]
[313684527,1707581282739,-21222.99836187,0.00022767,2]
[313684528,1707581282762,-243.99,0.000228,2]
[313684529,1707581282785,-200.0,0.00022816,2]
[313684530,1707581282809,-800.0,0.00022816,2]
[313684531,1707581282833,-257.93,0.0002283,2]
[313684532,1707581282856,-216.47782378,0.00022875,2]
[313684533,1707581282879,-155.28377308,0.00022898,2]
[313684534,1707581282904,-261.94468823,0.00022898,2]
[313684535,1707581282928,-190.93828834,0.00022898,2]
[313684536,1707581282953,-883.07707548,0.00022898,2]
[313684537,1707581282976,-700.31980649,0.00022898,2]
[313684538,1707581283000,-343.1154288,0.00022898,2]
[313684539,1707581283022,-409.89550879,0.00022898,2]
[313684540,1707581283045,-3157.62072365,0.00022898,2]
[313684541,1707581283067,-282.70188833,0.00022898,2]
[313684542,1707581283090,-150.99,0.00022899,2]
[313684543,1707581283112,-409.29860467,0.00022899,2]
[313684544,1707581283136,-26584.98601314,0.00022899,2]
[313684545,1707581289473,177.16,0.00022,2]
[313684546,1707581301307,500.0,0.00022,2]
[313684547,1707581305366,258.33,0.00022,2]
[313684548,1707581307050,258.33,0.00022137,2]
[313684549,1707581308571,258.33,0.00022274,2]
[313684555,1707581317517,19245.6336,0.00022216,2]
[313684556,1707581321445,1500.0,0.00022,2]
[313684557,1707581321774,1500.0,0.000215,2]
[313684558,1707581322050,2500.0,0.00021,2]
[313684559,1707581331893,12057.96667706,0.00022274,2]
[313684567,1707581347881,11252.00976165,0.00022274,2]
[313684569,1707581351521,368.337341,0.0002221,2]
[313684571,1707581360271,150.0,0.00022115,2]
[313684578,1707581382575,-157.51478069,0.00022311,2]
[313684579,1707581382596,-1369.98653739,0.0002232,2]
[313684580,1707581382616,-300.0,0.00022321,2]
[313684581,1707581382638,-150.0,0.00022321,2]
[313684582,1707581382658,-8022.49868192,0.00022322,2]
[313684591,1707581392720,156.99,0.00021962,2]
[313684592,1707581401072,4327.55,0.00021922,2]
[313684594,1707581410987,200.0,0.00021917,2]
[313684599,1707581416348,-15877.50131808,0.00022322,2]
[313684600,1707581416372,-262.02057428,0.00022411,2]
[313684601,1707581416394,-157.51478066,0.00022428,2]
[313684602,1707581416413,-191.93830431,0.00022448,2]
[313684603,1707581416433,-1500.0,0.000225,2]
[313684604,1707581416455,-157.51478066,0.00022546,2]
[313684605,1707581416479,-177.16,0.00022548,2]
[313684606,1707581416501,-500.0,0.00022548,2]
[313684607,1707581416521,-162.75,0.00022575,2]
[313684608,1707581416544,-157.51478066,0.00022663,2]
[313684609,1707581416566,-1078.56689997,0.00022667,2]
[313684610,1707581416585,-485.59833642,0.00022668,2]
[313684611,1707581416606,-1387.965281,0.00022738,2]
[313684612,1707581416627,-150.99,0.00022738,2]
[313684613,1707581416648,-182.3844385,0.00022756,2]
[313684614,1707581416670,-12859.92306242,0.00022766,2]
[313684638,1707581432354,-721.74,0.00022766,2]
[313684639,1707581432364,-812436.14963005,0.00022766,2]
[313684640,1707581432373,-1111.04314622,0.00022767,2]
[313684641,1707581432383,-98295.0,0.00022768,2]
[313684642,1707581432394,-157.51478066,0.00022781,2]
[313684643,1707581432404,-207.39,0.000228,2]
[313684644,1707581432414,-202215.44,0.000228,2]
[313684645,1707581432423,-728.12,0.00022867,2]
[313684646,1707581432433,-948.07700142,0.00022897,3]
[313684647,1707581432442,-503.3410751,0.00022897,2]
[313684648,1707581432452,-301.72742602,0.00022897,2]
[313684649,1707581432462,-949.2832,0.00022897,2]
[313684650,1707581432471,-6694.52803459,0.00022897,2]
[313684651,1707581432481,-2026.38214195,0.00022897,2]
[313684652,1707581432491,-1859.55887449,0.00022897,2]
[313684653,1707581432501,-215.95378239,0.00022897,2]
[313684654,1707581432511,-1406.73073493,0.00022897,2]
[313684655,1707581432521,-344.21063477,0.00022898,2]
[313684656,1707581432531,-4986.41682938,0.00022898,2]
[313684657,1707581432540,-597.64022587,0.00022898,2]
[313684658,1707581432550,-168.30826118,0.00022898,2]
[313684659,1707581432559,-184.17710329,0.00022898,2]
[313684660,1707581432570,-329.09713886,0.00022898,2]
[313684662,1707581432579,-157.51478066,0.00022898,2]
[313684664,1707581432589,-408.59540424,0.00022898,2]
[313684666,1707581432598,-500.0,0.00022898,2]
[313684668,1707581432608,-65718.1963,0.00022898,2]
[313684670,1707581432617,-75190.0,0.000229,2]
[313684671,1707581432626,-11432.48304975,0.000229,2]
[313684674,1707581432636,-173.47760868,0.000229,2]
[313684676,1707581432645,-241.37,0.00022959,2]
[313684679,1707581432654,-150.0,0.00022997,2]
[313684680,1707581432664,-150.0,0.00022997,2]
[313684681,1707581432673,-5273.73091781,0.00022998,3]
[313684682,1707581432683,-327400.4718387,0.00022998,2]
[313684683,1707581434455,200.0,0.00022246,2]
[313684689,1707581438411,-253.76754472,0.000228,2]
[313684690,1707581438423,-730.99409544,0.000228,2]
[313684691,1707581438434,-741.27723955,0.000228,2]
[313684692,1707581438445,-420.8888349,0.000228,2]
[313684693,1707581438456,-313.89851893,0.000228,2]
[313684694,1707581438627,-910.77797751,0.000228,2]
[313684708,1707581438915,-31774.04166129,0.000228,2]
[313684710,1707581438931,-8355.461751,0.000228,2]
[313684713,1707581438943,-37616.033428,0.000228,2]
[313684761,1707581440898,-286.52605256,0.000228,2]
[313684762,1707581441230,-1293.149938,0.000228,2]
[313684763,1707581441242,-6235.65860793,0.000228,2]
[313684764,1707581441839,-310.75095342,0.000228,2]
[313684841,1707581443345,-359063.3963058,0.000228,2]
[313684845,1707581443453,-4747.6764,0.000228,2]
[313684846,1707581443563,-409.68786706,0.000228,2]
[313684847,1707581443624,-449.96018287,0.000228,2]
[313684854,1707581446299,-902.05804609,0.000228,2]
[313684855,1707581447570,-10179.22579889,0.000228,2]
[313684856,1707581447580,-2500.0,0.00022898,2]
[313684857,1707581447590,-124511.37435221,0.00022998,2]
[313684858,1707581447659,-43316.93570248,0.00022998,2]
[313684859,1707581447669,-2183.1141218,0.00022998,2]
[313684860,1707581447678,-4146.9771894,0.00022998,2]
[313684861,1707581447688,-10679.225279,0.00022998,2]
[313684862,1707581447697,-1106.3273744,0.00022998,2]
[313684863,1707581447707,-61625.4631367,0.00022998,2]
[313684864,1707581447716,-25120.3653196,0.00022998,2]
[313684865,1707581447725,-1046.30905086,0.00022999,2]
[313684866,1707581447735,-500.0,0.00022999,2]
[313684867,1707581447744,-478.25364383,0.00022999,2]
[313684868,1707581447753,-150.0,0.00022999,2]
[313684869,1707581447762,-187.54511029,0.00022999,2]
[313684870,1707581447771,-275.25069744,0.00022999,2]
[313684871,1707581447781,-277.29866401,0.00022999,2]
[313684872,1707581447790,-150.0,0.00022999,2]
[313684873,1707581447799,-150.0,0.00022999,2]
[313684874,1707581447808,-245567.09336012,0.00023,2]
[313684875,1707581447818,-119264.73237045,0.00023,2]
[313684876,1707581447830,-1764.43089815,0.00023,2]
[313684877,1707581471708,-990.0,0.00023,7]
[313684878,1707581471729,-990.0,0.00023,7]
[313684879,1707581471751,-990.0,0.00023,7]
[313684880,1707581471772,-990.0,0.00023,7]
[313684881,1707581475399,173.65960248,0.00022999,10]
[313684884,1707581536559,2397.31,0.00022298,2]
[313684888,1707581545039,530.1,0.0002038,2]
[313684890,1707581553622,2705.0,0.00022159,2]
[313684891,1707581564331,2981.916,0.00022222,2]
[313684893,1707581574669,3607.21,0.00022039,2]
[313684897,1707581614829,688.96,0.00021923,2]
[313684902,1707581641827,2517.64,0.00021906,2]
[313684903,1707581643303,169.32,0.00017525,2]
[313684905,1707581666589,500.0,0.00021918,2]
[313684906,1707581670359,1000.0,0.00021918,2]
[313684909,1707581687890,466.62,0.00022061,2]
[313684910,1707581688089,466.62,0.00022121,2]
[313684911,1707581688290,466.62,0.00022182,2]
[313684912,1707581688493,466.62,0.00022242,2]
[313684913,1707581708920,162.1523967,0.0002222,2]
[313684914,1707581745088,-490.86879114,0.00022301,2]
[313684915,1707581745109,-109.13120886,0.00022301,2]
[313684916,1707581763338,2000.0,0.00021811,2]
[313684917,1707581768047,1275.44,0.00021811,2]
[313684919,1707581781360,497.1666794,0.000223,2]
[313684920,1707581805261,1871.4,0.0002199,2]
[313684921,1707581816290,176.94784805,0.00022263,2]
[313684922,1707581822729,250.0,0.00021918,2]
[313684923,1707581859372,23900.0,0.00021818,2]
[313684925,1707581884374,208.0,0.00022052,2]
[313684926,1707581908199,18589.19,0.00021812,2]
[313684927,1707581912474,200.0,0.00021812,2]
[313684932,1707581951145,4392.18,0.00021812,2]
[313684933,1707581955097,809.77,0.00021812,2]
[313684935,1707581976226,1852.42,0.00021815,2]
[313684936,1707581977986,750.0,0.00021815,2]
[313684937,1707581997140,166.3,0.00021815,2]
[313684939,1707582015481,567.88,0.00019903,2]
[313684940,1707582015618,567.88,0.00022167,2]
[313684941,1707582064698,165.24,0.00021834,2]
[313684942,1707582067759,250.0,0.00021834,2]
[313684943,1707582079418,200.0,0.00021834,2]
[313684945,1707582140277,2705.0,0.00021838,2]
[313684946,1707582143611,200.0,0.00021838,2]
[313684948,1707582159981,1258.82,0.00021838,2]
[313684949,1707582169078,1186.25,0.00021838,2]
[313684955,1707582252529,373.29,0.0002196,2]
[313684956,1707582252747,373.29,0.0002202,2]
[313684957,1707582252995,373.29,0.0002208,2]
[313684958,1707582253220,373.29,0.0002214,2]
[313684959,1707582253449,373.29,0.000222,2]
[313684960,1707582253689,373.29,0.00022261,2]
[313684963,1707582267999,2000.0,0.00021792,2]
[313684971,1707582330324,250.0,0.00021918,2]
[313684973,1707582377910,200.0,0.00021796,2]
[313684975,1707582383068,22144.28707585,0.00021796,2]
[313684976,1707582383091,1755.71292415,0.00021796,2]
[313684979,1707582430694,200.9862615,0.00022159,2]
[313684980,1707582442462,3660.15,0.00021789,2]
[313684981,1707582474435,511.09,0.00019866,2]
[313684982,1707582474635,511.09,0.0002213,2]
[313684983,1707582489575,222.73144716,0.00021789,2]
[313684984,1707582496872,642.37818507,0.00021789,2]
[313684985,1707582515367,228.15,0.00021797,2]
[313685046,1707582559962,177.16,0.0002191,2]
[313685052,1707582581039,250.0,0.00021797,2]
[313685055,1707582613824,629.41,0.00021797,2]
[313685078,1707582637511,-373.29,0.00022321,2]
[313685079,1707582637520,-159.67197257,0.00022325,2]
[313685080,1707582637530,-373.29,0.00022381,2]
[313685081,1707582637540,-3.78346543,0.00022423,2]
[313685082,1707582637740,-741.16929722,0.00022423,2]
[313685083,1707582637749,-373.29,0.00022441,2]
[313685084,1707582637758,-177.16,0.00022458,2]
[313685085,1707582637767,-165.54,0.0002247,2]
[313685086,1707582637777,-373.29,0.00022502,2]
[313685087,1707582637786,-1115.10560137,0.00022539,2]